fUSD/lending_fUSD_20250611
["ID","MTS","AMOUNT","RATE_DAILY","PERIOD"]
[365373788,1749624641008,-46470.85691565,0.000199,2]
[365373790,1749624641019,-13133.19586589,0.000199,2]
[365373793,1749624641036,-221.21744453,0.000199,3]
[365373795,1749624641045,-164.74824215,0.000199,2]
[365373797,1749624641055,-150.0,0.00019955,2]
[365373799,1749624641066,-150.0,0.00019955,2]
[365373800,1749624641076,-150.0,0.00019955,2]
[365373802,1749624641085,-504.26120495,0.00019973,2]
[365373804,1749624641095,-500.0,0.00019973,2]
[365373807,1749624641105,-150.0,0.00019974,4]
[365373809,1749624641116,-205.0,0.0001998,7]
[365373810,1749624641125,-961.52509598,0.00019985,2]
[365373813,1749624641134,-900.9414785,0.00019986,2]
[365373815,1749624641144,-8858.8162852,0.00019986,2]
[365373817,1749624641153,-1330.7230263,0.00019986,2]
[365373819,1749624641162,-1096.4079778,0.00019986,2]
[365373821,1749624641171,-862.0929293,0.00019986,2]
[365373822,1749624641180,-627.7778807,0.00019986,2]
[365373825,1749624641190,-393.4628322,0.00019986,2]
[365373827,1749624641199,-388.64,0.0001999,2]
[365373829,1749624641209,-388.64,0.0001999,2]
[365373831,1749624641218,-388.64,0.0001999,2]
[365373833,1749624641227,-1000.0,0.00019993,2]
[365373835,1749624641237,-1565.0380749,0.00019996,2]
[365373836,1749624641246,-300.0,0.00019999,2]
[365373838,1749624641255,-500.0,0.00019999,2]
[365373840,1749624641264,-150.0,0.00019999,2]
[365373843,1749624641274,-260.34316955,0.00019999,2]
[365373845,1749624641284,-603.0,0.0002,2]
[365373847,1749624641293,-833.29909032,0.0002,3]
[365373849,1749624641302,-164580.41831192,0.0002,3]
[365373851,1749624641311,-5717.88243725,0.0002,3]
[365373853,1749624641320,-37484.08064605,0.0002,2]
[365374029,1749624643039,-7984.97728162,0.0002,2]
[365374031,1749624643051,-8846.81198358,0.0002,2]
[365374033,1749624643063,-13922.73582692,0.0002,2]
[365374035,1749624643075,-1108.85914211,0.0002,2]
[365374045,1749624643161,-1121.145,0.0002,2]
[365374047,1749624643173,-942.316296,0.0002,2]
[365374049,1749624643185,-4501.33634472,0.0002,2]
[365374053,1749624643213,-562.6023957,0.0002,2]
[365374291,1749624645842,-590.719992,0.00018252,2]
[365374293,1749624645853,-38.985208,0.00018252,2]
[365374295,1749624645866,-1161.823,0.00019813,2]
[365374297,1749624645875,-56817.96652699,0.0002,2]
[365374308,1749624645965,-10904.58184874,0.0002,2]
[365374320,1749624646077,-3997.46,0.0002,2]
[365374328,1749624646144,-1490.42905445,0.0002,2]
[365374451,1749624655035,466.17,0.00024658,120]
[365374452,1749624668836,349.63,0.00024658,120]
[365374453,1749624685289,-247.50021735,0.00016438,2]
[365374454,1749624688529,524.45,0.00024658,120]
[365374457,1749624707541,262.22,0.00024658,120]
[365374466,1749624805625,-247.50021735,0.00016164,2]
[365374468,1749625215624,1333.0,0.00024398,120]
[365374470,1749625302812,446.25342419,0.00024,120]
[365374473,1749625559477,153.88,0.00013699,2]
[365374474,1749625598390,628.65,0.00015657,2]
[365374475,1749625633161,-334.8747695,0.00016164,2]
[365374476,1749625634311,-165.1252305,0.00016164,2]
[365374477,1749625634336,-500.0,0.00016164,2]
[365374478,1749625634358,-152.481,0.00016251,2]
[365374479,1749625634379,-155.70818704,0.00016253,2]
[365374480,1749625648346,-15.6576272,0.00016253,2]
[365374481,1749625648370,-490.57,0.00016348,2]
[365374482,1749625648391,-496.92,0.00016351,2]
[365374483,1749625648412,-507.35,0.00016351,2]
[365374484,1749625648433,-303.79,0.00016353,2]
[365374485,1749625648454,-493.41,0.00016355,2]
[365374486,1749625648474,-492.27,0.00016355,2]
[365374487,1749625648497,-1055.27436437,0.00016356,2]
[365374488,1749625749181,-463.16592224,0.00016164,2]
[365374491,1749625832040,-36.83407776,0.00016164,2]
[365374492,1749625832049,-500.0,0.00016164,2]
[365374493,1749625832058,-507.72,0.0001634,2]
[365374494,1749625832067,-498.64,0.0001634,2]
[365374495,1749625832076,-300.0,0.00016344,2]
[365374496,1749625832086,-1200.0,0.00016344,2]
[365374497,1749625832095,-506.03,0.00016345,2]
[365374498,1749625832104,-302.23,0.00016345,2]
[365374499,1749625832113,-490.08,0.00016345,2]
[365374500,1749625832122,-302.54,0.00016345,2]
[365374501,1749625832131,-496.32,0.00016345,2]
[365374502,1749625832140,-499.33,0.00016345,2]
[365374503,1749625832150,-494.7,0.00016345,2]
[365374504,1749625832159,-458.09772174,0.00016345,2]
[365374657,1749625835160,-37.12227826,0.00016345,2]
[365374658,1749625835170,-499.29,0.00016345,2]
[365374659,1749625835179,-498.75,0.00016345,2]
[365374660,1749625835189,-305.61,0.00016345,2]
[365374661,1749625835198,-301.99,0.00016345,2]
[365374662,1749625835208,-509.55,0.00016345,2]
[365374663,1749625835218,-490.58,0.00016345,2]
[365374664,1749625835227,-507.63,0.00016346,2]
[365374665,1749625835237,-498.18,0.00016346,2]
[365374666,1749625835246,-509.59,0.00016348,2]
[365374667,1749625835255,-301.24,0.00016348,2]
[365374668,1749625835265,-502.93,0.00016348,2]
[365374669,1749625835274,-497.62,0.00016348,2]
[365374670,1749625835284,-300.39,0.00016348,2]
[365374671,1749625835294,-498.09,0.00016348,2]
[365374672,1749625835303,-300.0,0.00016357,2]
[365374673,1749625835313,-300.0,0.00016358,2]
[365374674,1749625835322,-305.14,0.00016359,2]
[365374675,1749625835332,-505.21,0.00016359,2]
[365374676,1749625835342,-507.68,0.00016359,2]
[365374677,1749625835351,-490.42,0.00016366,2]
[365374678,1749625835360,-501.42,0.00016366,2]
[365374679,1749625835370,-499.83,0.00016375,2]
[365374680,1749625835381,-505.42,0.00016375,2]
[365374681,1749625835393,-490.74,0.00016375,2]
[365374682,1749625835403,-305.52,0.00016375,2]
[365374683,1749625835412,-494.64,0.00016388,2]
[365374684,1749625835422,-505.17,0.00016388,2]
[365374685,1749625835432,-492.26,0.00016388,2]
[365374686,1749625835442,-305.84,0.00016388,2]
[365374687,1749625835452,-493.38,0.00016405,2]
[365374688,1749625835463,-495.08,0.00016405,2]
[365374689,1749625835473,-300.45,0.00016405,2]
[365374690,1749625835483,-505.15,0.00016428,2]
[365374691,1749625835493,-305.98,0.00016428,2]
[365374692,1749625835502,-499.53,0.00016428,2]
[365374693,1749625835512,-151.0,0.00016428,2]
[365374694,1749625835522,-1518.47129465,0.00016438,2]
[365374695,1749625835532,-187.495983,0.00016438,2]
[365374696,1749625835542,-247.500217,0.00016438,2]
[365374697,1749625835551,-493.25,0.00016438,2]
[365374698,1749625835561,-301.78,0.00016438,2]
[365374699,1749625835570,-497.08,0.00016438,2]
[365374700,1749625835580,-497.81,0.00016438,2]
[365374701,1749625835590,-305.5,0.00016438,2]
[365374702,1749625835599,-508.0,0.00016438,2]
[365374703,1749625835609,-494.52,0.00016438,2]
[365374704,1749625835619,-207.18416328,0.000169,2]
[365374705,1749625835628,-232.3392782,0.00017,7]
[365374706,1749625835637,-833.29909032,0.0001712,2]
[365374707,1749625835647,-207.18416328,0.00017173,2]
[365374708,1749625835656,-150.0,0.00017312,7]
[365374709,1749625835666,-23900.0,0.00017321,2]
[365374710,1749625835675,-1261.2,0.00017336,2]
[365374711,1749625835685,-211.42,0.00017339,2]
[365374712,1749625835695,-207.18416328,0.00017445,2]
[365374713,1749625835704,-201.0,0.00017462,2]
[365374714,1749625835716,-200.0,0.00017569,2]
[365374715,1749625835726,-1000.0,0.00017626,2]
[365374716,1749625835735,-165.63,0.00017638,2]
[365374717,1749625835744,-666.0,0.00017652,2]
[365374718,1749625835753,-207.18416328,0.00017718,2]
[365374719,1749625835763,-150.99,0.00017728,2]
[365374720,1749625835773,-150.99,0.00017728,2]
[365374721,1749625835782,-307.6,0.00017728,2]
[365374722,1749625835792,-496.08,0.00017728,2]
[365374723,1749625835802,-302.85,0.00017772,2]
[365374724,1749625835811,-300.0,0.0001778,2]
[365374725,1749625835821,-250.0,0.0001778,2]
[365374726,1749625835831,-600.0,0.0001778,4]
[365374727,1749625835841,-250.0,0.0001778,2]
[365374728,1749625835850,-363.95,0.00017819,2]
[365374729,1749625835860,-507.07,0.00017861,2]
[365374730,1749625835870,-509.6,0.00017861,2]
[365374731,1749625835880,-499.68,0.00017861,2]
[365374732,1749625835889,-420.0,0.00017878,2]
[365374733,1749625835899,-250.0,0.00017879,2]
[365374734,1749625835909,-628.65,0.00017921,2]
[365374735,1749625835918,-166.45,0.00017935,2]
[365374736,1749625835928,-1680.0,0.00017952,2]
[365374737,1749625835937,-250.0,0.00017979,2]
[365374738,1749625835947,-600.0,0.00017979,4]
[365374739,1749625835957,-207.18416328,0.00017991,2]
[365374740,1749625835967,-497.13,0.00017995,2]
[365374741,1749625835976,-304.24,0.00017995,2]
[365374742,1749625835985,-495.67,0.00017995,2]
[365374743,1749625835995,-151.77,0.00018,2]
[365374744,1749625836004,-3085.00169141,0.00018,2]
[365374745,1749625836014,-500.0,0.00018192,2]
[365374746,1749625836023,-301.24,0.00018243,2]
[365374747,1749625836033,-207.18416328,0.00018264,2]
[365374748,1749625836042,-162.98,0.00018378,2]
[365374749,1749625836052,-201.0,0.00018791,3]
[365374750,1749625836062,-500.0,0.00018904,2]
[365374751,1749625836071,-500.0,0.00018904,2]
[365374752,1749625836081,-151.0,0.00018979,2]
[365374753,1749625836090,-1957.856,0.00018979,2]
[365374754,1749625836100,-506.77134837,0.00018979,2]
[365374755,1749625836109,-500.0,0.00018979,2]
[365374756,1749625836119,-500.0,0.00018979,2]
[365374757,1749625836128,-500.0,0.00018979,2]
[365374758,1749625836138,-500.0,0.00018979,2]
[365374759,1749625836150,-500.0,0.00018979,2]
[365374760,1749625836159,-574.58844348,0.00018979,2]
[365374761,1749625836170,-207.4,0.00018979,2]
[365374762,1749625836180,-2030.296672,0.00019034,2]
[365374763,1749625836190,-2105.41764886,0.00019089,2]
[365374764,1749625836199,-2183.31810187,0.00019144,2]
[365374765,1749625836209,-151.0,0.00019178,2]
[365374766,1749625836219,-170.13,0.00019178,2]
[365374767,1749625836228,-2264.10087163,0.00019199,2]
[365374768,1749625836238,-508.51,0.00019273,2]
[365374769,1749625836247,-490.86,0.00019273,2]
[365374770,1749625836257,-155.0,0.00019449,2]
[365374771,1749625836267,-7065.0,0.00019449,2]
[365374772,1749625836276,-4086.0,0.00019449,2]
[365374773,1749625836287,-171.36581423,0.000195,2]
[365374774,1749625836297,-587.0,0.00019539,2]
[365374775,1749625836307,-883.852873,0.00019599,2]
[365374776,1749625836317,-1000.0,0.000196,2]
[365374777,1749625836326,-8093.38,0.000197,2]
[365374778,1749625836336,-1252.0,0.00019719,2]
[365374779,1749625836345,-151.0,0.00019726,2]
[365374780,1749625836354,-961.52509598,0.00019778,2]
[365374781,1749625836363,-1000.0,0.00019799,2]
[365374782,1749625836373,-1000.0,0.000198,2]
[365374783,1749625836385,-2592.12866764,0.000198,2]
[365374784,1749625836395,-160.01070883,0.000198,2]
[365374785,1749625836405,-352.028,0.00019804,2]
[365374786,1749625836415,-2592.12866756,0.00019811,2]
[365374787,1749625836426,-302.652,0.00019813,2]
[365374788,1749625836436,-1796.945,0.00019813,2]
[365374789,1749625836446,-1159.0,0.00019813,2]
[365374790,1749625836456,-2592.12866756,0.00019822,2]
[365374791,1749625836466,-1000.0,0.00019829,2]
[365374792,1749625836476,-2592.12866756,0.00019833,2]
[365374793,1749625836485,-500.0,0.0001984,2]
[365374794,1749625836500,-2592.12866756,0.00019844,2]
[365374795,1749625836511,-2592.12866756,0.00019856,2]
[365374796,1749625836521,-2592.12866756,0.00019867,2]
[365374797,1749625836530,-1000.0,0.00019877,2]
[365374798,1749625836540,-2592.12866756,0.00019878,2]
[365374799,1749625836550,-653.45955987,0.00019886,2]
[365374800,1749625836559,-2592.12866756,0.00019889,2]
[365374801,1749625836568,-626.93,0.0001989,3]
[365374802,1749625836578,-653.45955987,0.00019893,2]
[365374803,1749625836587,-162.00149915,0.00019896,2]
[365374804,1749625836597,-191.29125533,0.00019899,2]
[365374805,1749625836606,-500.0,0.00019899,2]
[365374806,1749625836615,-70223.71990805,0.000199,2]
[365374807,1749625836902,-3000.94177969,0.000199,2]
[365374808,1749625836916,-7036.5633425,0.000199,2]
[365374809,1749625836944,-716.12752548,0.000199,2]
[365374810,1749625836956,-2431.20714157,0.000199,2]
[365374811,1749625836968,-493.39158432,0.000199,2]
[365374812,1749625836979,-1766.96701839,0.000199,2]
[365374813,1749625836989,-1482.73417941,0.000199,2]
[365374814,1749625836998,-3891.14610485,0.000199,2]
[365374815,1749625837009,-277.8417361,0.000199,2]
[365374816,1749625837021,-9186.16125728,0.000199,2]
[365374817,1749625837030,-653.45955987,0.000199,2]
[365374818,1749625837039,-2592.12866756,0.000199,2]
[365374819,1749625837049,-221.21744453,0.000199,3]
[365374820,1749625837058,-504.26120495,0.00019973,2]
[365374821,1749625837067,-500.0,0.00019973,2]
[365374822,1749625837076,-166.0,0.00019978,2]
[365374823,1749625837085,-166.0,0.00019978,2]
[365374824,1749625837094,-166.0,0.00019978,2]
[365374825,1749625837103,-166.0,0.00019978,2]
[365374826,1749625837113,-166.0,0.00019978,2]
[365374827,1749625837122,-166.0,0.00019978,2]
[365374828,1749625837132,-172.0,0.00019978,2]
[365374829,1749625837141,-1215.3281529,0.00019986,2]
[365374830,1749625837151,-1057.94302,0.00019986,2]
[365374831,1749625837161,-900.5578871,0.00019986,2]
[365374832,1749625837170,-743.1727542,0.00019986,2]
[365374833,1749625837181,-585.7876213,0.00019986,2]
[365374834,1749625837190,-10632.7637977,0.00019986,2]
[365374835,1749625837200,-1782.807248,0.00019986,2]
[365374836,1749625837209,-1578.5820032,0.00019986,2]
[365374837,1749625837219,-1374.3567585,0.00019986,2]
[365374838,1749625837228,-1170.1315137,0.00019986,2]
[365374839,1749625837237,-965.9062689,0.00019986,2]
[365374840,1749625837246,-1511.7687833,0.00019986,2]
[365374841,1749625837256,-1338.5917054,0.00019986,2]
[365374842,1749625837266,-1165.4146274,0.00019986,2]
[365374843,1749625837275,-992.2375494,0.00019986,2]
[365374844,1749625837285,-819.0604714,0.00019986,2]
[365374845,1749625837295,-260.34316955,0.00019989,2]
[365374846,1749625837304,-11435.76487449,0.0001999,3]
[365374847,1749625837314,-116297.841979,0.0001999,3]
[365374848,1749625837329,-207.18416328,0.00018536,2]
[365374849,1749625837340,-54522.81583672,0.0001999,3]
[365374850,1749625837352,-972.30378484,0.0001999,3]
[365374851,1749625837376,-1757.81818939,0.0001999,3]
[365374856,1749625838046,-207.18416328,0.00018809,2]
[365374857,1749625838056,-207.18416328,0.00019082,2]
[365374858,1749625838065,-207.18416328,0.00019355,2]
[365374859,1749625838074,-853.0,0.00019449,2]
[365374860,1749625838084,-207.18416328,0.00019627,2]
[365374861,1749625838093,-500.0,0.00019798,2]
[365374862,1749625838102,-500.0,0.00019798,2]
[365374863,1749625838111,-501.12357183,0.00019798,2]
[365374864,1749625838121,-483.29832813,0.00019798,2]
[365374865,1749625838130,-207.18416328,0.000199,2]
[365374866,1749625838139,-9894.46791127,0.0001999,3]
[365374867,1749625838152,-3206.65230829,0.0001999,3]
[365374947,1749625840200,-493.15,0.00016345,2]
[365374949,1749625840210,-145860.5740391,0.0001999,3]
[365374951,1749625840219,-248830.44304971,0.0001999,2]
[365374963,1749625840335,-1509.07620217,0.0001999,2]
[365374964,1749625840466,-19805.47823446,0.0001999,2]
[365374998,1749625840676,-3792.73231126,0.0001999,2]
[365375002,1749625840688,-66897.97336236,0.0001999,2]
[365375005,1749625840699,-2713.31238824,0.0001999,2]
[365375008,1749625840709,-1135.05761176,0.0001999,2]
[365375581,1749625845953,-505.49,0.00016345,2]
[365375582,1749625845963,-201.0,0.00017462,2]
[365375585,1749625845972,-250.111,0.00019449,2]
[365375586,1749625845983,-1111.17829323,0.0001999,2]
[365375589,1749625845993,-908.85167085,0.0001999,2]
[365375590,1749625846003,-1372.7132858,0.00019996,2]
[365375593,1749625846012,-1987.0324928,0.00019996,2]
[365375595,1749625846022,-1684.9458613,0.00019996,2]
[365375596,1749625846031,-300.0,0.00019999,2]
[365375598,1749625846041,-300.0,0.00019999,2]
[365375600,1749625846050,-500.0,0.00019999,2]
[365375602,1749625846059,-150.0,0.00019999,2]
[365375604,1749625846069,-603.0,0.0002,2]
[365375606,1749625846078,-833.29909032,0.0002,3]
[365375609,1749625846087,-12109.5985936,0.0002,2]
[365375611,1749625846099,-2896.3297121,0.0002,2]
[365375677,1749626180305,426.95286234,0.000178,120]
[365375736,1749626831300,-162.371147,0.00016064,2]
[365375737,1749626831321,-652.31,0.00016151,2]
[365375738,1749626831342,-500.0,0.00016164,2]
[365375739,1749626831363,-177.0101002,0.00016164,2]
[365375740,1749626835108,-322.9898998,0.00016164,2]
[365375741,1749626835131,-1200.0,0.00016343,2]
[365375742,1749626835153,-279.0,0.00016344,2]
[365375743,1749626835176,-509.29,0.00016345,2]
[365375744,1749626835198,-506.73,0.00016345,2]
[365375745,1749626835219,-496.3,0.00016345,2]
[365375746,1749626835244,-98.68846251,0.00016345,2]
[365375748,1749626874728,153.88,0.00013699,2]
[365375749,1749626890827,906.13140454,0.0002465,120]
[365375754,1749626960115,-500.0,0.00016164,2]
[365375755,1749626960139,-183.2810831,0.00016164,2]
[365375756,1749626986575,219.09300238,0.00024655,120]
[365375769,1749627032186,-67.42702773,0.00016164,2]
[365375770,1749627032195,-300.0,0.00016343,2]
[365375771,1749627032204,-96.78087849,0.00016343,2]
[365375772,1749627032216,-1103.21912151,0.00016343,2]
[365375773,1749627032225,-490.99,0.00016344,2]
[365375774,1749627032234,-491.63,0.00016344,2]
[365375775,1749627032244,-150.2,0.00016344,2]
[365375776,1749627032253,-505.31222288,0.00016344,2]
[365375777,1749627032321,-2.18777712,0.00016344,2]
[365375778,1749627032330,-150.82,0.00016344,2]
[365375779,1749627032339,-492.15,0.00016344,2]
[365375780,1749627032348,-302.83,0.00016344,2]
[365375781,1749627032357,-151.31,0.00016344,2]
[365375782,1749627032366,-303.68,0.00016344,2]
[365375783,1749627032375,-304.52,0.00016344,2]
[365375784,1749627032389,-494.29,0.00016344,2]
[365375785,1749627032398,-505.87,0.00016344,2]
[365375786,1749627032407,-501.84,0.00016344,2]
[365375787,1749627032416,-305.62,0.00016344,2]
[365375788,1749627032425,-506.32,0.00016344,2]
[365375789,1749627032434,-500.36,0.00016344,2]
[365375790,1749627032443,-508.34,0.00016345,2]
[365375791,1749627032453,-397.68153749,0.00016345,2]
[365375792,1749627032462,-507.08,0.00016345,2]
[365375793,1749627032471,-9.99894317,0.00016345,2]
[365375794,1749627032486,-292.68105683,0.00016345,2]
[365375795,1749627032495,-505.45,0.00016345,2]
[365375796,1749627032504,-303.4,0.00016345,2]
[365375797,1749627032514,-15.36463348,0.00016345,2]
[365375798,1749627032525,-492.37536652,0.00016345,2]
[365375799,1749627032535,-45.69772377,0.00016345,2]
[365375800,1749627032546,-260.03227623,0.00016345,2]
[365375801,1749627032555,-16.62661882,0.00016345,2]
[365375802,1749627032565,-481.37338118,0.00016345,2]
[365375803,1749627032575,-96.71451642,0.00016345,2]
[365375804,1749627032600,-407.83548358,0.00016345,2]
[365375805,1749627032609,-186.01367817,0.00016345,2]
[365375806,1749627032637,-323.65632183,0.00016345,2]
[365375807,1749627032646,-70.43067817,0.00016345,2]
[365375813,1749627034502,1536.511185,0.0002,120]
[365375821,1749627038950,-232.24932183,0.00016345,2]
[365375822,1749627038959,-494.23,0.00016345,2]
[365375823,1749627038969,-496.7,0.00016345,2]
[365375824,1749627038979,-305.17,0.00016345,2]
[365375825,1749627038990,-508.12,0.00016345,2]
[365375826,1749627039001,-504.25,0.00016345,2]
[365375827,1749627039010,-497.01,0.00016345,2]
[365375828,1749627039019,-305.18,0.00016345,2]
[365375829,1749627039029,-505.58,0.00016345,2]
[365375830,1749627039039,-152.03,0.00016345,2]
[365375831,1749627039049,-494.68,0.00016345,2]
[365375832,1749627039059,-303.47,0.00016345,2]
[365375833,1749627039067,-301.37,0.00016345,2]
[365375834,1749627039083,-304.22,0.00016345,2]
[365375835,1749627039095,-151.66,0.00016345,2]
[365375836,1749627039114,-505.38,0.00016345,2]
[365375837,1749627039130,-492.19,0.00016345,2]
[365375838,1749627039142,-492.19,0.00016345,2]
[365375839,1749627039155,-499.28,0.00016345,2]
[365375840,1749627039164,-502.59,0.00016345,2]
[365375841,1749627039175,-501.92,0.00016345,2]
[365375842,1749627039187,-502.35,0.00016345,2]
[365375843,1749627039199,-494.15,0.00016345,2]
[365375844,1749627039208,-496.82,0.00016345,2]
[365375845,1749627039217,-5076.18940464,0.00016399,2]
[365375846,1749627039226,-491.62,0.00016425,2]
[365375847,1749627039235,-3066.74261,0.00016438,2]
[365375848,1749627039245,-2545.626712,0.00016438,2]
[365375849,1749627039254,-1195.518567,0.00016438,2]
[365375850,1749627039263,-152.0,0.00016763,3]
[365375851,1749627039272,-204.18169882,0.000169,2]
[365375852,1749627039281,-1083.04,0.00017056,2]
[365375853,1749627039290,-23900.0,0.00017118,2]
[365375854,1749627039299,-201.0,0.00017121,2]
[365375855,1749627039308,-833.29909032,0.00017144,2]
[365375856,1749627039317,-204.18169874,0.0001715,2]
[365375857,1749627039327,-150.0,0.00017286,7]
[365375858,1749627039336,-198.43,0.00017314,2]
[365375859,1749627039345,-204.18169874,0.000174,2]
[365375860,1749627039354,-175.66899229,0.00017524,2]
[365375861,1749627039363,-641.99839004,0.00017524,2]
[365375862,1749627039372,-58158.42511522,0.00017525,2]
[365375863,1749627039382,-36462.53,0.00017623,2]
[365375864,1749627039391,-204.18169874,0.0001765,2]
[365375865,1749627039401,-403.0,0.00017862,2]
[365375866,1749627039411,-204.18169874,0.000179,2]
[365375867,1749627039420,-250.0,0.00017979,2]
[365375868,1749627039429,-151.71,0.00018,2]
[365375869,1749627039439,-1160.52217767,0.00018,2]
[365375870,1749627039448,-165.44,0.0001809,2]
[365375871,1749627039458,-204.18169874,0.0001815,2]
[365375872,1749627039468,-302.81,0.00018168,2]
[365375873,1749627039477,-503.0,0.00018192,2]
[365375874,1749627039487,-250.0,0.00018198,2]
[365375875,1749627039497,-200.0,0.00018212,2]
[365375876,1749627039507,-1000.0,0.00018238,2]
[365375877,1749627039517,-666.0,0.00018258,2]
[365375878,1749627039528,-201.0,0.00018382,3]
[365375879,1749627039538,-204.18169874,0.000184,2]
[365375880,1749627039548,-652.31,0.00018415,2]
[365375881,1749627039558,-204.18169874,0.0001865,2]
[365375882,1749627039567,-1577.74,0.00018828,2]
[365375883,1749627039578,-204.18169874,0.000189,2]
[365375884,1749627039587,-500.0,0.00018904,2]
[365375885,1749627039598,-150.0,0.00018979,2]
[365375886,1749627039608,-150.0,0.00018979,2]
[365375887,1749627039617,-500.0,0.00018979,2]
[365375888,1749627039627,-151.0,0.00018979,2]
[365375890,1749627039637,-1957.856,0.00018979,2]
[365375892,1749627039647,-207.4,0.00018979,2]
[365375894,1749627039658,-250.0,0.00019,2]
[365375896,1749627039668,-200.0,0.00019006,2]
[365375897,1749627039678,-500.0,0.00019006,2]
[365375898,1749627039687,-21714.07,0.0001903,2]
[365375899,1749627039697,-500.0,0.00019034,2]
[365375900,1749627039707,-689.15447902,0.00019034,2]
[365375901,1749627039716,-500.0,0.00019061,2]
[365375902,1749627039726,-500.0,0.00019089,2]
[365375903,1749627039736,-500.0,0.00019116,2]
[365375904,1749627039745,-500.0,0.00019143,2]
[365375905,1749627039755,-204.18169874,0.0001915,2]
[365375906,1749627039766,-372.78919175,0.00019171,2]
[365375907,1749627039777,-152.0,0.00019176,4]
[365375908,1749627039787,-170.13,0.00019178,2]
[365375909,1749627039796,-472.13672134,0.00019239,2]
[365375910,1749627039807,-472.1367213,0.00019312,2]
[365375911,1749627039816,-9537.88,0.00019339,2]
[365375912,1749627039826,-150.99,0.00019339,2]
[365375913,1749627039835,-277.38,0.00019363,2]
[365375914,1749627039847,-472.1367213,0.00019386,2]
[365375915,1749627039857,-204.18169874,0.000194,2]
[365375916,1749627039866,-472.1367213,0.00019459,2]
[365375917,1749627039875,-10000.0,0.000195,2]
[365375918,1749627039885,-472.1367213,0.00019533,2]
[365375919,1749627039895,-490.17,0.00019578,2]
[365375921,1749627039905,-123917.52736302,0.000196,2]
[365375922,1749627039948,-11030.08248262,0.000196,2]
[365375923,1749627039959,-1631.0,0.000196,2]
[365375924,1749627039971,-4026.3938299,0.000196,2]
[365375925,1749627039982,-2132.57087603,0.000196,2]
[365375926,1749627039994,-1570.70831661,0.000196,2]
[365375927,1749627040005,-9827.42884134,0.000196,2]
[365375929,1749627040051,-2615.92995068,0.000196,2]
[365375930,1749627040491,-491.6,0.00016345,2]
[365375931,1749627040501,-29483.53361948,0.000196,2]
[365375932,1749627040513,-24961.82472032,0.000196,2]
[365375933,1749627040522,-472.1367213,0.00019606,2]
[365375934,1749627040531,-201.0,0.00019643,5]
[365375935,1749627040541,-204.18169874,0.0001965,2]
[365375936,1749627040551,-472.1367213,0.0001968,2]
[365375937,1749627040560,-150.0,0.00019699,2]
[365375938,1749627040569,-472.1367213,0.00019753,2]
[365375939,1749627040578,-10672.7743,0.000198,2]
[365375940,1749627040588,-7964.38343018,0.000198,2]
[365375941,1749627040614,-267.17995659,0.000198,2]
[365375942,1749627040708,-31410.75661323,0.000198,2]
[365375943,1749627040718,-150.0,0.000198,2]
[365375944,1749627040727,-281.623,0.00019813,2]
[365375945,1749627040736,-4082.0,0.00019813,2]
[365375946,1749627040746,-2349.333,0.00019813,2]
[365375947,1749627040756,-155.0,0.00019813,2]
[365375948,1749627040770,-472.1367213,0.00019827,2]
[365375949,1749627040780,-500.0,0.0001984,2]
[365375950,1749627040789,-784.24028627,0.00019884,2]
[365375951,1749627040799,-9808.5813,0.0001989,2]